Cogmind - Beta 13 @@@ ROGUE MODE // 2024.03.22 @ 21:23:37 Player: darki Result: Destroyed by as-07538 with Assembled Heavy Rifle Performance ------------- Evolutions (1) 500 Regions Visited (5) 1000 Robots Destroyed (33) 165 Value Destroyed (719) 719 Prototype IDs (27) 540 Alien Tech Used (0) 0 Bonus (156) 156 TOTAL SCORE: 3080 Bonus ------- Aligned with FarCom 300 Friendly Fire -144 Cogmind --------- Core Integrity 0/400 Matter 260/300 Energy 43/100 System Corruption 1% Temperature Cool (0) Movement Core (350) Ox6 Location -9/Exiles Parts ------- > --- POWER (1) -------- (None) > --- PROPULSION (2) --- Improved Flight Unit > --- UTILITY (4) ------ Machine Analyzer Sensor Array > --- WEAPON (2) ------- YOLO Cannon > --- INVENTORY (5) ---- Terrain Scanner Terrain Scan Processor Utility Shielding Blade Trap Blade Trap Peak State ------------ > --- POWER ------------ (None) > --- PROPULSION ------- Improved Flight Unit > --- UTILITY ---------- Machine Analyzer Sensor Array > --- WEAPON ----------- YOLO Cannon > --- INVENTORY -------- Terrain Scanner Terrain Scan Processor Utility Shielding Blade Trap Blade Trap [Rating: 27] Favorites ----------- Power Ion Engine Engine Ion Engine Propulsion Aluminum Leg Treads Light Treads Leg Aluminum Leg Flight Unit Improved Flight Unit Utility Machine Analyzer Device Shield Generator Storage Large Storage Unit Processor Machine Analyzer Protection Light Armor Plating Weapon Medium Laser Energy Gun Medium Laser Energy Cannon YOLO Cannon Ballistic Gun Assault Rifle Build | -11 -10 -10 -9 -9 -9 ------- Run | Yrd Mat Min Mat Min Exi Slots Evolved 2 | . . . 2 . . Power . | . . . . . . Propulsion . | . . . . . . Utility 2 | . . . 2 . . Weapon . | . . . . . . Parts Attached 23 | . 10 . 10 2 1 Power 2 | . . . 2 . . Engine 2 | . . . 2 . . Core . | . . . . . . Reactor . | . . . . . . Propulsion 8 | . 3 . 5 . . Treads 2 | . . . 2 . . Leg 5 | . 3 . 2 . . Wheel . | . . . . . . Hover . | . . . . . . Flight 1 | . . . 1 . . Utility 7 | . 3 . 2 2 . Device 3 | . . . 1 2 . Storage 2 | . 2 . . . . Processor 1 | . 1 . . . . Hackware . | . . . . . . Protection 1 | . . . 1 . . Artifact . | . . . . . . Weapon 6 | . 4 . 1 . 1 Energy Gun 4 | . 3 . 1 . . Energy Cannon 1 | . . . . . 1 Ballistic Gun 1 | . 1 . . . . Ballistic Cannon . | . . . . . . Launcher . | . . . . . . Special Weapon . | . . . . . . Impact Weapon . | . . . . . . Slashing Weapon . | . . . . . . Piercing Weapon . | . . . . . . Special Melee Weapon . | . . . . . . Unidentified Prototypes 2 | . . . 1 1 . Parts Lost 13 | . 2 . 11 . . Power 2 | . . . 2 . . Propulsion 4 | . . . 4 . . Utility 2 | . . . 2 . . Weapon 5 | . 2 . 3 . . Highest Loss Streak 4 | . 1 . 4 . . To Critical Strikes 1 | . . . 1 . . Average Slot Usage (%) 86 | . 99 100 80 30 40 Engine 11 | . 14 14 10 . . Treads 2 | . . . 6 . . Leg 20 | . 28 28 14 . . Device 2 | . . . 3 8 11 Storage 11 | . 14 14 10 . . Processor 12 | . 13 14 11 11 11 Protection 1 | . . . 4 . . Energy Gun 16 | . 16 28 19 . . Ballistic Gun 5 | . 10 . . . . Naked Turns . | . . . . . . Heaviest Build 34 | 14 29 29 34 2 19 Greatest Support 40 | 20 20 20 40 5 5 Greatest Overweight (x) 6 | . 1 1 1 . 6 Average Overweight (x) . | . . 1 . . . Largest Inventory Capacity 15 | . 15 15 15 5 5 Average Capacity 13 | . 13 15 14 5 5 Most Carried 15 | . 15 15 15 5 5 Average Carried 11 | . 11 15 11 3 5 Final Capacity 15 | 8 15 15 5 5 5 Final Carried 15 | 6 15 15 4 5 5 Class Distribution -------------------- 89% | Mutant 10% | Scavenger-Mutant Dominant Class ---------------- Mutant | -10/Materials Mutant | -10/Mines Mutant | -9/Materials Mutant | -9/Mines Mutant | -9/Exiles Resources | -11 -10 -10 -9 -9 -9 ----------- Run | Yrd Mat Min Mat Min Exi Matter Collected 477 | 186 226 . 65 . . Remotely . | . . . . . . Salvage Created 1017 | . 542 35 430 . 10 Parts 53 | . 31 3 19 . . Haulers Intercepted 2 | . 2 . . . . Recyclers Shooed 1 | . 1 . . . . Parts Field Recycled . | . . . . . . Retrieved Matter . | . . . . . . Parts Self-Destructed . | . . . . . . Prevented . | . . . . . . Kills | -11 -10 -10 -9 -9 -9 ------- Run | Yrd Mat Min Mat Min Exi Combat Hostiles Destroyed 30 | . 11 3 13 . 3 Guns 25 | . 11 2 12 . . AOE 3 | . . . . . 3 Classes Destroyed 8 | . 5 . 2 . 1 Builder 1 | . 1 . . . . Hauler 2 | . 2 . . . . Mechanic 1 | . 1 . . . . Watcher 2 | . . . 2 . . Swarmer 13 | . 3 3 7 . . Grunt 11 | . 8 . 3 . . Sentry 3 | . . . 3 . . Assembled 3 | . . . . . 3 Best Kill Streak 3 | . 3 3 2 . 3 Combat Bots Only 3 | . 3 3 2 . 3 Max Kills in Single Turn 3 | . 2 1 1 . 3 Gunslinging 1 | . 1 . . . . Exploded 3 | . . . . . 3 Melee . | . . . . . . Uniques/NPCs Destroyed . | . . . . . . Combat | -11 -10 -10 -9 -9 -9 -------- Run | Yrd Mat Min Mat Min Exi Hostile Shots Fired 271 | . 76 13 176 . 6 Missed 73 | . 18 3 51 . 1 Damage Taken 2121 | . 639 78 1304 . 100 Core 589 | . 176 7 369 . 37 Absorbed by Shields 84 | . . . 84 . . Core Remaining (%) 63 | 100 . 26 . . . Volleys Fired 129 | . 47 6 74 . 2 Largest 2 | . 2 2 2 . 1 Hottest 100 | . 90 100 100 . 100 Shots Fired 226 | . 90 12 122 . 2 Gun 224 | . 90 12 122 . . Cannon 2 | . . . . . 2 Launcher . | . . . . . . Special . | . . . . . . Kinetic 39 | . 39 . . . . Thermal 187 | . 51 12 122 . 2 Explosive . | . . . . . . Electromagnetic . | . . . . . . Robot Hit Streak 14 | . 8 4 14 . . Robot Miss Streak 4 | . 2 3 4 . 2 Penetration Max . | . . . . . . Secondary Targets 3 | . 3 . . . . Max Gunslinging Chain 1 | . 1 . . . . Shots Hit Robots 148 | . 64 6 78 . . Core Hits 57 | . 28 2 23 . 4 Critical Kills . | . . . . . . Critical Parts Destroyed . | . . . . . . Critical Strikes 13 | . 4 2 7 . . Burn 13 | . 4 2 7 . . Melee Attacks . | . . . . . . Impact . | . . . . . . Slashing . | . . . . . . Piercing . | . . . . . . Sneak Attacks . | . . . . . . Combat Hostiles . | . . . . . . Follow-up Attacks . | . . . . . . Damage Inflicted 2127 | . 813 77 996 . 241 Guns 1881 | . 813 77 991 . . Cannons . | . . . . . . Explosions 241 | . . . . . 241 Melee . | . . . . . . Ramming 5 | . . . 5 . . Kinetic 379 | . 379 . . . . Thermal 1743 | . 434 77 991 . 241 Explosive . | . . . . . . Electromagnetic . | . . . . . . Impact . | . . . . . . Slashing . | . . . . . . Piercing . | . . . . . . Highest Corruption 1 | . . . 1 1 1 Average Corruption 1 | . . . 1 1 1 Corruption Purged . | . . . . . . Corruption Blocked . | . . . . . . Effects 4 | . . . 3 1 . Message Errors 2 | . . . 1 1 . Heat Flow Errors 1 | . . . 1 . . Energy Discharges 1 | . . . 1 . . Overload Shots . | . . . . . . Overflow Damage 7 | . . . . . 7 Projectiles . | . . . . . . Explosions 7 | . . . . . 7 Melee . | . . . . . . Knockbacks . | . . . . . . Impact . | . . . . . . Kinetic . | . . . . . . Secondary . | . . . . . . Self-Inflicted Damage . | . . . . . . Shots . | . . . . . . Rammed 3 | . . . 3 . . Targets Rammed 3 | . . . 3 . . Kicked . | . . . . . . Crushed . | . . . . . . Highest Temperature 294 | . 177 234 294 244 . Average Temperature 88 | . 63 118 95 131 . Received Heat Transfer 630 | . 306 . 324 . . Siege Activations . | . . . . . . Robots Corrupted . | . . . . . . Combat Hostiles . | . . . . . . Parts Fried . | . . . . . . Impact Corruptions . | . . . . . . Robots Melted 2 | . . 1 1 . . Combat Hostiles 2 | . . 1 1 . . Parts Melted 14 | . 3 . 11 . . Heat Transferred 5567 | . 1436 370 3441 . 320 Parts Sabotaged . | . . . . . . Parts Stolen . | . . . . . . Parts Stripped . | . . . . . . Power Chain Reactions . | . . . . . . Alert | -11 -10 -10 -9 -9 -9 ------- Run | Yrd Mat Min Mat Min Exi Peak Influence 248 | . 223 113 248 37 . Initial 43 | . . 43 43 37 . Average 97 | . 87 108 115 37 . Maximum Alert Level 1 | . 1 . 1 . . Low Security (%) 86 | . 84 100 86 100 . Level 1 13 | . 15 . 13 . . Level 2 . | . . . . . . Level 3 . | . . . . . . Level 4 . | . . . . . . Level 5 . | . . . . . . High Security . | . . . . . . Max Security . | . . . . . . Squads Dispatched 4 | . 1 . 3 . . Investigation 2 | . 1 . 1 . . Extermination . | . . . . . . Reinforcement 2 | . . . 2 . . Assault . | . . . . . . Garrison . | . . . . . . Intercept . | . . . . . . Searches Triggered . | . . . . . . Construction Impeded . | . . . . . . Haulers Reinforced . | . . . . . . Active Scanning Responses . | . . . . . . Cargo Convoy Interrupts . | . . . . . . Stealth | -11 -10 -10 -9 -9 -9 --------- Run | Yrd Mat Min Mat Min Exi Distress Signals 4 | . 4 . . . . Communications Jammed . | . . . . . . Distress Signals . | . . . . . . Times Spotted 63 | . 21 2 37 . 3 Peak Tracking Total 9 | . 6 2 8 . 9 Tactical Retreats 1 | . 1 . . . . Traps | -11 -10 -10 -9 -9 -9 ------- Run | Yrd Mat Min Mat Min Exi Traps Triggered 2 | . 1 . 1 . . Indirectly . | . . . . . . Trap Hack Attempts . | . . . . . . Triggered . | . . . . . . Disarmed . | . . . . . . Reprogrammed . | . . . . . . Reused . | . . . . . . Traps Extracted . | . . . . . . Installed . | . . . . . . Triggered . | . . . . . . Most Traps Carried 2 | . . . . 2 2 Machines | -11 -10 -10 -9 -9 -9 ---------- Run | Yrd Mat Min Mat Min Exi Machines Disabled 4 | . . . . . 4 Max in Single Turn 3 | . . . . . 3 Machines Repaired . | . . . . . . Machines Dismantled . | . . . . . . Machines Sabotaged . | . . . . . . Overloaded Fab Kills . | . . . . . . Hacking | -11 -10 -10 -9 -9 -9 --------- Run | Yrd Mat Min Mat Min Exi Machines Accessed 13 | . 6 . 6 . 1 Terminals 11 | . 6 . 5 . . Fabricators . | . . . . . . Repair Stations 1 | . . . 1 . . Recycling Units . | . . . . . . Scanalyzers . | . . . . . . Garrison Access . | . . . . . . Total Hacks 27 | . 11 . 15 . 1 Successful 14 | . 6 . 7 . 1 Failed 13 | . 5 . 8 . . Catastrophic 2 | . . . 2 . . Database Lockouts . | . . . . . . Manual 17 | . 10 . 6 . 1 Terminals 22 | . 11 . 11 . . Fabricators . | . . . . . . Repair Stations 4 | . . . 4 . . Recycling Units . | . . . . . . Scanalyzers . | . . . . . . Garrison Access . | . . . . . . Terminal Hacks 6 | . 1 . 4 . 1 Robot Analysis 1 | . 1 . . . . Prototype ID Bank 1 | . . . 1 . . Branch Access Points 1 | . . . 1 . . Dispatch Records 1 | . . . 1 . . Hauler Manifests 1 | . . . 1 . . Derelict Proto ID Bank 1 | . . . . . 1 Fabricator Hacks . | . . . . . . Repair Station Hacks . | . . . . . . Recycling Unit Hacks . | . . . . . . Scanalyzer . | . . . . . . Garrison Access Hacks . | . . . . . . Unauthorized Hacks 8 | . 5 . 3 . . Terminals 8 | . 5 . 3 . . Botnet 6 | . 3 . 3 . . Disrupt 1 | . 1 . . . . Operators 1 | . 1 . . . . Fabricators . | . . . . . . Repair Stations . | . . . . . . Recycling Units . | . . . . . . Scanalyzers . | . . . . . . Garrison Access . | . . . . . . Data Cores Recovered . | . . . . . . Used . | . . . . . . Hacking Detections 9 | . 4 . 5 . . Full Trace Events 1 | . . . 1 . . Feedback Events . | . . . . . . Feedback Blocked . | . . . . . . Robot Schematics Acquired . | . . . . . . Robots Built . | . . . . . . Authchips . | . . . . . . Time . | . . . . . . Total Robot Build Rating . | . . . . . . Part Schematics Acquired . | . . . . . . Parts Built . | . . . . . . Authchips . | . . . . . . Time . | . . . . . . Total Part Build Rating . | . . . . . . Parts Repaired . | . . . . . . Time . | . . . . . . Parts Recycled . | . . . . . . Recycled Matter . | . . . . . . Retrieved Matter . | . . . . . . Retrieved Components . | . . . . . . Parts Scanalyzed . | . . . . . . Part Schematics Acquired . | . . . . . . Parts Damaged . | . . . . . . Bothacking | -11 -10 -10 -9 -9 -9 ------------ Run | Yrd Mat Min Mat Min Exi Used RIF Installer . | . . . . . . Robots Hacked . | . . . . . . Non-combat . | . . . . . . Combat . | . . . . . . Robot Hacks Applied . | . . . . . . Relay Couplers Released . | . . . . . . Fabnet Peak Effective % . | . . . . . . Robots Rewired . | . . . . . . Allies Hacked . | . . . . . . Hacks Repelled . | . . . . . . Allies | -11 -10 -10 -9 -9 -9 -------- Run | Yrd Mat Min Mat Min Exi Total Allies . | . . . . . . Largest Group . | . . . . . . Highest-Rated Group . | . . . . . . Highest-Rated Ally . | . . . . . . Total Orders . | . . . . . . Ally Attacks . | . . . . . . Total Damage . | . . . . . . Kills . | . . . . . . Allies Corrupted . | . . . . . . Allies Melted . | . . . . . . Intel | -11 -10 -10 -9 -9 -9 ------- Run | Yrd Mat Min Mat Min Exi Robot Analysis Total 1 | . 1 . . . . Derelict Logs Recovered 2 | . . . . 2 . Drone Launches . | . . . . . . Drone Recoveries . | . . . . . . Exploration | -11 -10 -10 -9 -9 -9 ------------- Run | Yrd Mat Min Mat Min Exi Turns Passed 2490 | . 1214 106 954 78 138 Spaces Moved 1276 | 1 539 47 362 182 145 Core 43 | . . . 42 . 1 Treads 166 | . . . 166 . . Legs 734 | 1 539 47 147 . . Wheels . | . . . . . . Hover . | . . . . . . Flight 333 | . . . 7 182 144 Fastest Speed 40 | 120 120 190 40 40 40 Average Speed 147 | 120 168 190 191 40 81 Slowest Speed 350 | 120 190 190 240 40 350 Overloaded Moves . | . . . . . . Propulsion Burnouts . | . . . . . . Robots Hopped . | . . . . . . Cave-ins Triggered . | . . . . . . Exploration Rate (%) 41 | 2 84 16 54 50 40 Regions Visited 5 Branch Regions 3 Pre-discovered Areas 2 | . . . . 2 . Known Exits Taken 1 | . . . 1 . . Unknown Exits Taken 4 | 1 1 1 . 1 . Scrap Searched 2 | . . 1 . 1 . Spaces Dug . | . . . . . . Terrain Destroyed . | . . . . . . Melee . | . . . . . . Projectile . | . . . . . . AOE . | . . . . . . Terrain Rammed . | . . . . . . Walls Destroyed . | . . . . . . Machines Disabled . | . . . . . . Actions | -11 -10 -10 -9 -9 -9 --------- Run | Yrd Mat Min Mat Min Exi Total 1654 | . 756 52 501 186 159 Wait 201 | . 151 . 39 . 11 Move 1271 | . 538 46 361 181 145 Hop . | . . . . . . Pick Up 12 | . 6 . 4 2 . Fast Attach 7 | . 4 . 1 1 1 Attach 10 | . 1 . 8 1 . Detach 1 | . 1 . . . . Swap 6 | . 5 . 1 . . Drop 14 | . 3 . 10 1 . Fire 129 | . 47 6 74 . 2 Melee . | . . . . . . Ram 1 | . . . 1 . . Kick . | . . . . . . Crush 2 | . . . 2 . . Escape Stasis . | . . . . . . Rewire . | . . . . . . Trap . | . . . . . . Miscellaneous . | . . . . . . Route ------- -11/Scrapyard -10/Materials (discovered 4 exits: *Mat x3 / [*Min]) -10/Mines -9/Materials (discovered 2 exits: [*Mat] / *Min) -9/Mines (discovered 2 exits: [*Mat] / *Exi) -9/Exiles History --------- Turn | Location | Event 1 | -11/Scrapyard | Discovered new exit (range 0) 1 | -11/Scrapyard | Entered Materials 165 | -10/Materials | Discovered new exit (range 14) 311 | -10/Materials | Build established: Mutant 433 | -10/Materials | Discovered new exit (range 16) 518 | -10/Materials | Discovered new exit (range 13) 571 | -10/Materials | Discovered new exit (range 7) 729 | -10/Materials | Core integrity fell below 50% 1215 | -10/Materials | Entered Mines 1313 | -10/Mines | Discovered new exit (range 4) 1321 | -10/Mines | Entered Materials 1321 | -9/Materials | Evolved 2 slots: Utility x2 1760 | -9/Materials | Lost 3 parts (2n1w) 1803 | -9/Materials | Discovered new exit (range 15) 2247 | -9/Materials | Core integrity fell below 50% 2263 | -9/Materials | Identified exit to Mines 2270 | -9/Materials | Core integrity fell below 20% 2275 | -9/Materials | Entered Mines 2277 | -9/Mines | Lost 4 parts (1p1n1u1w) 2284 | -9/Mines | Discovered new exit (range 7) 2312 | -9/Mines | Found a damaged Exp. Sensor Array with a note attached 2313 | -9/Mines | Found Prototype Device 2313 | -9/Mines | Identified Exp. Sensor Array 2327 | -9/Mines | Found a hidden stash of uninstalled traps 2334 | -9/Mines | Learned location of Zion (-7) 2351 | -9/Mines | Deemed a non-threat by the Exiles lab entrance 2351 | -9/Mines | Discovered new exit (range 5) 2353 | -9/Mines | Entered Exiles 2363 | -9/Exiles | Met 8R-AWN 2370 | -9/Exiles | Met EX-HEX 2382 | -9/Exiles | Met EX-BIN 2387 | -9/Exiles | Aligned with FarCom system 2388 | -9/Exiles | Given EX-Vault access code 2398 | -9/Exiles | Opened EX-Vault 2400 | -9/Exiles | Found YOLO Cannon 2454 | -9/Exiles | Warned to stay clear of 0b10 Research branches 2471 | -9/Exiles | Attacked by the Exiles 2491 | -9/Exiles | Destroyed by as-07538 with Assembled Heavy Rifle Last Messages --------------- EX-BIN: Oh yeah, I'd suggest you stay away from the 0b10 Research branches, since the FarCom signals could be picked up there, but you're welcome to try if you really want to. And if we have to leave here due to unforeseen circumstances, don't worry the FarCom system will continue to maintain contact via our distributed network. EX-BIN: And don't even think about spreading that code around. We're gonna change it right after you leave. Most certainly not to something like 1234 which I did last time as a little joke and some thief managed to sneak in here and steal a few of HEX's prototypes. 02470_ FarCom Aligner disabled. 02470_ BIN's Workstation disabled. 02470_ BIN's Terminal disabled. 02471_ EXILES: Hostile robot within lab perimeter. Defensive protocols time, folks! 02473_ EX-BIN: "I just want to science!" Map ----- +----------------------------------------------------+ | ?????????????????????# X#???????????????????? | | ?????????????????????## ##???????????????????? | | ?????????????????????#X #????????????????????? | | ?????????????????????## #????????????????????? | | ??????????????????????# #????????????????????? | | ??????????????????????# #???#####????????????? | | ??????????????????????# #??"""""#????????????? | | ??????????????????????# ## """#????????????? | | ??????????????????????# X""#????????????? | | ??????????????????????# ## """#????????????? | | ????????????????####??# #??"""""#????????????? | | ???????????????""""""?# #???#####????????????? | | ???????????????"""" ## #????????????????????? | | ??????????????#""X" #????????????????????? | | ??????????????#" #????????????????????? | | ??????????????#" ## #????????????????????? | | ??????????????#""""""?# #?#########??????????? | | ??????????????##"###??# #?#"""""""#??????????? | | ??????????????????????# #?#"""""""#??????????? | | ??????????????????????# #?#"""""""#??????????? | | ?????????????????????## ###"" """"#??????????? | | ?????????????????????#" """"#??????????? | | ?????????????????????#" """#??????????? | | ?????????????????????#" """#??????????? | | ?????????????????????#" "#??????????? | | ?????????????????????#" @ #??????????? | | ?????????????????????#" aa #??????????? | | ?????????????????????## ""?????????? | | ??????????????????????# #??????????? | | ??????????????????????#" "??????????? | | ??????????????????????#" " #??????????? | | ??????????????????????#" """""""""#??????????? | | ?????????????????????##" ###########??????????? | | ????????????????????##"" #????????????????????? | | ??????????????????###"" a#????????????????????? | | ?????????????????"""""" ##???????????????????? | | ????????????????"" " "" ##???###########????? | | ???????????????""" " #####"""""""""##???? | | ?????????????" " " """ """"##??? | | ??????????? "" " #??? | | ??????????? " """#??? | | ???????????? " "#??? | | ???????????? " "##?? | | ????????????? ""### | | ????????????? """""" """# | | ????????????? ######""" "# | | ?????????????? ""#?????#####""" # | | ??????????????"""???????????##""" | | ?????????????????????????????#"""" | | ?????????????????????????????#"" | +----------------------------------------------------+ Best States ------------- Heat Dissipation 28 Energy Generation 12 Energy Capacity 265 Matter Stores 300 Matter Capacity 300 Sight Range 16 Robot Scan Range 14 Terrain Scan Density 10 Armor Coverage 150 Evasion (%) 62 Recoil Reduction 2 Item Schematics ----------------- None Robot Schematics ------------------ None Fabricated ------------ Nothing Alien Tech Used ----------------- None Achievements -------------- None Challenges ------------ None Game ------ Seed SkeletonImpactMultitool Manual? 0 Play Time 00:19:25 Cumulative 176.3 hours Start 2024.03.22 @ 20:18:05 End 2024.03.22 @ 21:23:37 Sessions 1 Manual Loads 0 Difficulty Rogue Special Mode None Game No. 188 Rogue 188 Adventurer 0 Explorer 0 Win Type - Total 1 Types 1/0/0/0/0/0/0/0/0 Lore% 57 Gallery% 73 Achievement% 57 Wizard Run 0 Options --------- Layout 1 ASCII 0 Keyboard 0 Movement Numpad Keybinds 0 Fullscreen 1 Font 24/Smallcaps Map View 50x35 Zoom Use 0% Tactical HUD 1 Map Filters NONE Filters NONE Steam 1 RUN: a33c0c61-62f8-47cf-8463-f176bb612c4f